[Event "*** Titled Tuesday 3|2 Blitz"]
[Site "Chess.com"]
[Date "2014.12.30"]
[Round "3"]
[White "Yaacovn"]
[Black "KestutisLabeckas"]
[Result "1/2-1/2"]
[WhiteElo "2605"]
[BlackElo "2381"]
[TimeControl "180+2"]
[EndTime "11:35:33 PST"]
[Termination "Game drawn by repetition"]

1. d4 {[%clk 0:03:00]} 1... Nf6 {[%clk 0:02:58.2]} 2. Nf3 {[%clk 0:02:51.2]}
2... d5 {[%clk 0:02:59.1]} 3. c4 {[%clk 0:02:52.3]} 3... c6 {[%clk 0:03:00.3]}
4. cxd5 {[%clk 0:02:53.8]} 4... cxd5 {[%clk 0:03:01.4]} 5. Nc3 {[%clk
0:02:55.7]} 5... Nc6 {[%clk 0:03:02.5]} 6. Bf4 {[%clk 0:02:56.9]} 6... Bf5
{[%clk 0:03:03.3]} 7. Qb3 {[%clk 0:02:56]} 7... Na5 {[%clk 0:03:03.7]} 8. Qa4+
{[%clk 0:02:57.3]} 8... Bd7 {[%clk 0:03:03.6]} 9. Qc2 {[%clk 0:02:58.5]} 9... e6
{[%clk 0:03:04.6]} 10. e3 {[%clk 0:02:59.3]} 10... Rc8 {[%clk 0:03:04.6]} 11.
Bd3 {[%clk 0:03:00.2]} 11... Be7 {[%clk 0:03:04.5]} 12. O-O {[%clk 0:03:01.1]}
12... O-O {[%clk 0:03:04.6]} 13. Ne5 {[%clk 0:03:02.6]} 13... Nc4 {[%clk
0:02:56.6]} 14. Qe2 {[%clk 0:03:02.9]} 14... Nd6 {[%clk 0:02:44.6]} 15. Rac1
{[%clk 0:03:02.5]} 15... Be8 {[%clk 0:02:43.1]} 16. Bg5 {[%clk 0:03:01]} 16...
h6 {[%clk 0:02:41.2]} 17. Bh4 {[%clk 0:03:02.1]} 17... a6 {[%clk 0:02:39.3]} 18.
f4 {[%clk 0:03:01.7]} 18... b5 {[%clk 0:02:26.9]} 19. Qf3 {[%clk 0:02:48.1]}
19... Nc4 {[%clk 0:02:25.8]} 20. Bxc4 {[%clk 0:02:47]} 20... bxc4 {[%clk
0:02:24.3]} 21. f5 {[%clk 0:02:47.9]} 21... Bd7 {[%clk 0:02:08.2]} 22. g4 {[%clk
0:02:20.3]} 22... Nh7 {[%clk 0:01:30]} 23. Bxe7 {[%clk 0:02:08.1]} 23... Qxe7
{[%clk 0:01:31.9]} 24. Qf4 {[%clk 0:02:02.3]} 24... Bc6 {[%clk 0:01:19.8]} 25.
Qg3 {[%clk 0:01:49.4]} 25... Bb7 {[%clk 0:01:16.5]} 26. Rf2 {[%clk 0:01:44.8]}
26... exf5 {[%clk 0:01:13.3]} 27. gxf5 {[%clk 0:01:42.9]} 27... Kh8 {[%clk
0:01:13.9]} 28. Kh1 {[%clk 0:01:38.9]} 28... Nf6 {[%clk 0:01:03.5]} 29. Rg1
{[%clk 0:01:38.2]} 29... Rg8 {[%clk 0:01:04.8]} 30. Qh4 {[%clk 0:01:35.7]} 30...
Rce8 {[%clk 0:00:52]} 31. Rfg2 {[%clk 0:00:53.4]} 31... Bc8 {[%clk 0:00:52.1]}
32. Qf4 {[%clk 0:00:48.9]} 32... Kh7 {[%clk 0:00:47.9]} 33. a3 {[%clk
0:00:43.2]} 33... Bb7 {[%clk 0:00:38.1]} 34. Qh4 {[%clk 0:00:33.8]} 34... Bc8
{[%clk 0:00:35]} 35. Qf2 {[%clk 0:00:31.6]} 35... Bb7 {[%clk 0:00:33.5]} 36. h3
{[%clk 0:00:30.3]} 36... Nd7 {[%clk 0:00:33.5]} 37. f6 {[%clk 0:00:28]} 37...
Nxf6 {[%clk 0:00:23.4]} 38. Qf5+ {[%clk 0:00:28.7]} 38... g6 {[%clk 0:00:24.6]}
39. Nxg6 {[%clk 0:00:17.8]} 39... fxg6 {[%clk 0:00:15.2]} 40. Rxg6 {[%clk
0:00:18.5]} 40... Rxg6 {[%clk 0:00:12.3]} 41. Rxg6 {[%clk 0:00:17]} 41... Bc8
{[%clk 0:00:11.6]} 42. Qxf6 {[%clk 0:00:13.1]} 42... Qxf6 {[%clk 0:00:13]} 43.
Rxf6 {[%clk 0:00:15]} 43... Rxe3 {[%clk 0:00:14.1]} 44. Nxd5 {[%clk 0:00:12.7]}
44... Rxh3+ {[%clk 0:00:15.1]} 45. Kg2 {[%clk 0:00:13.3]} 45... Rb3 {[%clk
0:00:17]} 46. Rc6 {[%clk 0:00:13.2]} 46... Bb7 {[%clk 0:00:17.9]} 47. Rc7+
{[%clk 0:00:14.2]} 47... Kg6 {[%clk 0:00:18.8]} 48. Rd7 {[%clk 0:00:14.4]} 48...
Bxd5+ {[%clk 0:00:19.5]} 49. Rxd5 {[%clk 0:00:15.5]} 49... Rxb2+ {[%clk
0:00:21.1]} 50. Kf3 {[%clk 0:00:17.2]} 50... Rb3+ {[%clk 0:00:22.4]} 51. Ke4
{[%clk 0:00:18.3]} 51... Rxa3 {[%clk 0:00:24.3]} 52. Rc5 {[%clk 0:00:19.3]}
52... c3 {[%clk 0:00:25.3]} 53. d5 {[%clk 0:00:20.4]} 53... Kf6 {[%clk
0:00:26.2]} 54. Rc6+ {[%clk 0:00:21.7]} 54... Ke7 {[%clk 0:00:27.6]} 55. Ke5
{[%clk 0:00:23.4]} 55... Kd7 {[%clk 0:00:28.7]} 56. Rd6+ {[%clk 0:00:23.8]}
56... Ke7 {[%clk 0:00:28.7]} 57. Re6+ {[%clk 0:00:24.4]} 57... Kd7 {[%clk
0:00:29.7]} 58. Rd6+ {[%clk 0:00:25.8]} 58... Kc7 {[%clk 0:00:28.8]} 59. Rc6+
{[%clk 0:00:27.1]} 59... Kd7 {[%clk 0:00:30.2]} 60. Rd6+ {[%clk 0:00:28]}
1/2-1/2

[Event "*** Titled Tuesday 3|2 Blitz"]
[Site "Chess.com"]
[Date "2014.12.30"]
[Round "3"]
[White "GedoGluperd"]
[Black "zmaj23"]
[Result "1-0"]
[WhiteElo "2320"]
[BlackElo "2109"]
[TimeControl "180+2"]
[EndTime "11:35:40 PST"]
[Termination "GedoGluperd won by resignation"]

1. d4 {[%clk 0:02:59.5]} 1... e6 {[%clk 0:02:56.1]} 2. g3 {[%clk 0:02:56.9]}
2... Nf6 {[%clk 0:02:52.1]} 3. Bg2 {[%clk 0:02:58.1]} 3... d5 {[%clk 0:02:53.6]}
4. c4 {[%clk 0:02:57.5]} 4... dxc4 {[%clk 0:02:43]} 5. Nf3 {[%clk 0:02:57.5]}
5... Bb4+ {[%clk 0:02:39.8]} 6. Bd2 {[%clk 0:02:55.8]} 6... Bxd2+ {[%clk
0:02:38.6]} 7. Nbxd2 {[%clk 0:02:57.1]} 7... O-O {[%clk 0:02:39]} 8. Nxc4 {[%clk
0:02:56.7]} 8... Nc6 {[%clk 0:02:34.6]} 9. O-O {[%clk 0:02:55.3]} 9... Qe7
{[%clk 0:02:29.8]} 10. Qb3 {[%clk 0:02:42.7]} 10... Rd8 {[%clk 0:02:29.4]} 11.
e3 {[%clk 0:02:39.2]} 11... a5 {[%clk 0:02:29.5]} 12. Rac1 {[%clk 0:02:27.8]}
12... Nb4 {[%clk 0:02:11.4]} 13. a3 {[%clk 0:02:19.4]} 13... Nc6 {[%clk
0:02:00.7]} 14. Nfe5 {[%clk 0:02:16.1]} 14... Nxe5 {[%clk 0:01:57.2]} 15. Nxe5
{[%clk 0:02:15.7]} 15... Ra6 {[%clk 0:01:49.2]} 16. Rc2 {[%clk 0:02:10.4]} 16...
Rb6 {[%clk 0:01:44.3]} 17. Qa4 {[%clk 0:02:09.5]} 17... Ra6 {[%clk 0:01:33.3]}
18. Rfc1 {[%clk 0:02:09.2]} 18... c6 {[%clk 0:01:34.6]} 19. Rc5 {[%clk
0:01:54.8]} 19... Nd5 {[%clk 0:01:25.1]} 20. Bxd5 {[%clk 0:01:42.5]} 20... Rxd5
{[%clk 0:01:16.4]} 21. Nd3 {[%clk 0:01:26]} 21... Bd7 {[%clk 0:01:10.5]} 22. Nf4
{[%clk 0:01:23.9]} 22... Rxc5 {[%clk 0:01:11.1]} 23. Rxc5 {[%clk 0:01:24.7]}
23... b6 {[%clk 0:01:07.9]} 24. Rc2 {[%clk 0:01:21.3]} 24... c5 {[%clk 0:01:07]}
25. Qc4 {[%clk 0:01:21]} 25... Ra8 {[%clk 0:00:52.2]} 26. dxc5 {[%clk
0:01:21.9]} 26... Rc8 {[%clk 0:00:50.7]} 27. b4 {[%clk 0:01:22.9]} 27... axb4
{[%clk 0:00:50.2]} 28. axb4 {[%clk 0:01:23.4]} 28... g5 {[%clk 0:00:40.7]} 29.
Nd3 {[%clk 0:01:15.9]} 29... Ba4 {[%clk 0:00:39.5]} 30. Rc1 {[%clk 0:01:12.2]}
30... Qd7 {[%clk 0:00:36.1]} 31. Qd4 {[%clk 0:01:02.7]} 31... Qb7 {[%clk
0:00:15.7]} 32. Ne5 {[%clk 0:00:38.5]} 32... h6 {[%clk 0:00:06.6]} 33. h4 {[%clk
0:00:28]} 33... gxh4 {[%clk 0:00:05.9]} 34. Qxh4 {[%clk 0:00:28.3]} 34... Kg7
{[%clk 0:00:05.4]} 35. Qg4+ {[%clk 0:00:26.9]} 35... Kf6 {[%clk 0:00:05.4]} 36.
Qf4+ {[%clk 0:00:25.4]} 36... Kg7 {[%clk 0:00:06.6]} 37. Ng4 {[%clk 0:00:13.8]}
37... f5 {[%clk 0:00:03.6]} 38. Qxh6+ {[%clk 0:00:13.9]} 38... Kg8 {[%clk
0:00:04.2]} 39. Nf6+ {[%clk 0:00:13.9]} 39... Kf7 {[%clk 0:00:05.5]} 40. Qh7+
{[%clk 0:00:15.2]} 40... Kxf6 {[%clk 0:00:07]} 41. Qxb7 {[%clk 0:00:16.9]} 41...
Rh8 {[%clk 0:00:06.5]} 42. cxb6 {[%clk 0:00:13.2]} 42... Bb3 {[%clk 0:00:07.8]}
43. f3 {[%clk 0:00:12.5]} 43... Bd5 {[%clk 0:00:09]} 44. Qc7 {[%clk 0:00:10.7]}
44... Bxf3 {[%clk 0:00:10.1]} 45. Kf2 {[%clk 0:00:12]} 45... Be4 {[%clk
0:00:10.3]} 46. Ke1 {[%clk 0:00:10.6]} 46... Rh2 {[%clk 0:00:10.2]} 47. Qc3+
{[%clk 0:00:10.2]} 47... Kg5 {[%clk 0:00:10.4]} 48. Qg7+ {[%clk 0:00:10.3]}
48... Kh5 {[%clk 0:00:11]} 49. Qh7+ {[%clk 0:00:11.2]} 49... Kg4 {[%clk
0:00:12.9]} 50. Qxh2 {[%clk 0:00:12.2]} 1-0

[Event "*** Titled Tuesday 3|2 Blitz"]
[Site "Chess.com"]
[Date "2014.12.30"]
[Round "3"]
[White "Vandros57"]
[Black "swayamsm"]
[Result "0-1"]
[WhiteElo "1841"]
[BlackElo "2312"]
[TimeControl "180+2"]
[EndTime "11:35:53 PST"]
[Termination "swayamsm won on time"]

1. d4 {[%clk 0:02:57.3]} 1... e6 {[%clk 0:02:59.7]} 2. Nf3 {[%clk 0:02:57.1]}
2... Nf6 {[%clk 0:02:56]} 3. c4 {[%clk 0:02:55.7]} 3... b6 {[%clk 0:02:57]} 4.
g3 {[%clk 0:02:55.5]} 4... Bb7 {[%clk 0:02:58.4]} 5. Bg2 {[%clk 0:02:56]} 5...
Bb4+ {[%clk 0:03:00]} 6. Bd2 {[%clk 0:02:55.2]} 6... Bxd2+ {[%clk 0:03:01.3]} 7.
Qxd2 {[%clk 0:02:51.5]} 7... O-O {[%clk 0:03:02.3]} 8. O-O {[%clk 0:02:48.9]}
8... c6 {[%clk 0:03:03.7]} 9. Nc3 {[%clk 0:02:47.3]} 9... d5 {[%clk 0:03:05.2]}
10. Ne5 {[%clk 0:02:42.3]} 10... Nbd7 {[%clk 0:03:06]} 11. cxd5 {[%clk
0:02:39.4]} 11... cxd5 {[%clk 0:03:03.8]} 12. Nxd7 {[%clk 0:02:39.2]} 12... Qxd7
{[%clk 0:03:04]} 13. Rac1 {[%clk 0:02:38.8]} 13... Rac8 {[%clk 0:03:00.1]} 14.
b3 {[%clk 0:02:35.4]} 14... Rc7 {[%clk 0:02:55.8]} 15. a4 {[%clk 0:02:33.7]}
15... Rfc8 {[%clk 0:02:57.1]} 16. Nb5 {[%clk 0:02:32.6]} 16... Rxc1 {[%clk
0:02:58.1]} 17. Rxc1 {[%clk 0:02:31.5]} 17... a6 {[%clk 0:02:59.1]} 18. Rxc8+
{[%clk 0:02:24.6]} 18... Qxc8 {[%clk 0:03:01]} 19. Nd6 {[%clk 0:02:19.5]} 19...
Qc7 {[%clk 0:03:01.3]} 20. Nxb7 {[%clk 0:02:19.4]} 20... Qxb7 {[%clk 0:03:03.2]}
21. Qc3 {[%clk 0:02:13.4]} 21... h6 {[%clk 0:02:55.5]} 22. h4 {[%clk 0:02:11.3]}
22... Qd7 {[%clk 0:02:55.9]} 23. e3 {[%clk 0:02:08.8]} 23... a5 {[%clk
0:02:49.6]} 24. Qc2 {[%clk 0:02:00.4]} 24... g6 {[%clk 0:02:37.9]} 25. Bf1
{[%clk 0:01:58.6]} 25... Kg7 {[%clk 0:02:38.5]} 26. Bd3 {[%clk 0:01:56]} 26...
Qd6 {[%clk 0:02:39.1]} 27. Qc3 {[%clk 0:01:49.8]} 27... Qa3 {[%clk 0:02:37.9]}
28. Kg2 {[%clk 0:01:48.6]} 28... Qa2 {[%clk 0:02:35.7]} 29. Qc2 {[%clk
0:01:46.2]} 29... Qxc2 {[%clk 0:02:26]} 30. Bxc2 {[%clk 0:01:46.5]} 30... Ne8
{[%clk 0:02:25.6]} 31. Kf1 {[%clk 0:01:38]} 31... Nd6 {[%clk 0:02:22.7]} 32. Bd3
{[%clk 0:01:35]} 32... f6 {[%clk 0:02:23.7]} 33. f4 {[%clk 0:01:30.8]} 33... g5
{[%clk 0:02:25.1]} 34. Kf2 {[%clk 0:01:24]} 34... Kf7 {[%clk 0:02:20.2]} 35. Kf3
{[%clk 0:01:23.6]} 35... f5 {[%clk 0:01:58.4]} 36. hxg5 {[%clk 0:01:19.3]} 36...
hxg5 {[%clk 0:02:00.3]} 37. g4 {[%clk 0:01:09.7]} 37... Kf6 {[%clk 0:01:55.6]}
38. gxf5 {[%clk 0:01:03.4]} 38... exf5 {[%clk 0:01:55.9]} 39. fxg5+ {[%clk
0:00:59.7]} 39... Kxg5 {[%clk 0:01:57.8]} 40. Bc2 {[%clk 0:00:48.6]} 40... Ne8
{[%clk 0:01:57.3]} 41. Bd3 {[%clk 0:00:43.7]} 41... Nf6 {[%clk 0:01:58.9]} 42.
Kg3 {[%clk 0:00:34.9]} 42... Ng8 {[%clk 0:01:55.7]} 43. Bb5 {[%clk 0:00:31.9]}
43... Nf6 {[%clk 0:01:51.7]} 44. Bc6 {[%clk 0:00:24.8]} 44... Ne4+ {[%clk
0:01:52.8]} 45. Kg2 {[%clk 0:00:19.8]} 45... Nc3 {[%clk 0:01:52.5]} 46. Kg3
{[%clk 0:00:17.8]} 46... Ne4+ {[%clk 0:01:41]} 47. Kg2 {[%clk 0:00:18.3]} 47...
f4 {[%clk 0:01:42.4]} 48. exf4+ {[%clk 0:00:14.1]} 48... Kxf4 {[%clk 0:01:44.3]}
49. Bxd5 {[%clk 0:00:14.7]} 49... Nc3 {[%clk 0:01:45.9]} 50. Bc4 {[%clk
0:00:12.6]} 50... Ke4 {[%clk 0:01:46.5]} 51. Kf2 {[%clk 0:00:10]} 51... Kxd4
{[%clk 0:01:46.6]} 52. Ke1 {[%clk 0:00:10.6]} 52... Nxa4 {[%clk 0:01:47.9]} 53.
Kd2 {[%clk 0:00:07.7]} 53... Nc5 {[%clk 0:01:47.5]} 54. Kc2 {[%clk 0:00:04.7]}
54... Ne4 {[%clk 0:01:45.5]} 55. Bg8 {[%clk 0:00:03.1]} 55... Kc5 {[%clk
0:01:46.6]} 56. Kb2 {[%clk 0:00:03.9]} 56... Kb4 {[%clk 0:01:47.8]} 57. Bh7
{[%clk 0:00:04.8]} 57... Nc5 {[%clk 0:01:46.5]} 58. Bc2 {[%clk 0:00:05.4]} 58...
Ne6 {[%clk 0:01:45.5]} 59. Bd1 {[%clk 0:00:06.3]} 59... Nd4 {[%clk 0:01:47.4]}
60. Ka2 {[%clk 0:00:05.9]} 60... Kc3 {[%clk 0:01:48.9]} 61. Ka3 {[%clk
0:00:05.8]} 61... b5 {[%clk 0:01:50.4]} 62. Ka2 {[%clk 0:00:06]} 62... b4 {[%clk
0:01:51.8]} 63. Bh5 {[%clk 0:00:05.5]} 63... Nxb3 {[%clk 0:01:53.4]} 64. Be8
{[%clk 0:00:05.2]} 64... Nc1+ {[%clk 0:01:55]} 65. Kb1 {[%clk 0:00:05.4]} 65...
Nd3 {[%clk 0:01:56.7]} 66. Ka2 {[%clk 0:00:05.9]} 66... Nc5 {[%clk 0:01:58.3]}
67. Kb1 {[%clk 0:00:05.9]} 67... Kb3 {[%clk 0:01:59.2]} 68. Bf7+ {[%clk
0:00:05.5]} 68... Ka3 {[%clk 0:02:01.1]} 69. Ka1 {[%clk 0:00:04.8]} 69... a4
{[%clk 0:02:01.6]} 70. Bg8 {[%clk 0:00:04.7]} 70... b3 {[%clk 0:02:03]} 71. Bf7
{[%clk 0:00:04.2]} 71... Ne4 {[%clk 0:02:04.5]} 72. Bg8 {[%clk 0:00:03.6]} 72...
b2+ {[%clk 0:02:05.2]} 73. Kb1 {[%clk 0:00:02.8]} 73... Nc3+ {[%clk 0:02:07.1]}
0-1

[Event "*** Titled Tuesday 3|2 Blitz"]
[Site "Chess.com"]
[Date "2014.12.30"]
[Round "3"]
[White "MisaPap"]
[Black "AUSSIE_PINOY"]
[Result "1-0"]
[WhiteElo "2384"]
[BlackElo "2284"]
[TimeControl "180+2"]
[EndTime "11:39:57 PST"]
[Termination "MisaPap won by resignation"]

1. e4 {[%clk 0:03:00]} 1... c5 {[%clk 0:02:59]} 2. c3 {[%clk 0:02:59.8]} 2... a6
{[%clk 0:02:59.8]} 3. d4 {[%clk 0:02:59.4]} 3... e6 {[%clk 0:03:01.1]} 4. Nf3
{[%clk 0:02:58.3]} 4... b6 {[%clk 0:03:01.3]} 5. Bd3 {[%clk 0:02:58.3]} 5... Bb7
{[%clk 0:03:02.4]} 6. O-O {[%clk 0:02:59.3]} 6... Qc7 {[%clk 0:03:03.3]} 7. Re1
{[%clk 0:02:58.5]} 7... d6 {[%clk 0:03:04.4]} 8. Nbd2 {[%clk 0:02:54.7]} 8...
Nd7 {[%clk 0:03:05.4]} 9. Nf1 {[%clk 0:02:55.6]} 9... Ngf6 {[%clk 0:03:06.4]}
10. Ng3 {[%clk 0:02:56.1]} 10... Be7 {[%clk 0:03:07.4]} 11. a3 {[%clk
0:02:52.4]} 11... b5 {[%clk 0:03:07.9]} 12. e5 {[%clk 0:02:46.6]} 12... dxe5
{[%clk 0:03:05.5]} 13. dxe5 {[%clk 0:02:47.3]} 13... Nd5 {[%clk 0:03:06.1]} 14.
Nh5 {[%clk 0:02:41.5]} 14... g6 {[%clk 0:03:02.7]} 15. Ng3 {[%clk 0:02:33.8]}
15... c4 {[%clk 0:02:59.2]} 16. Bc2 {[%clk 0:02:33.8]} 16... h6 {[%clk
0:02:44.6]} 17. Qe2 {[%clk 0:02:26.5]} 17... Nc5 {[%clk 0:02:43.5]} 18. Nd4
{[%clk 0:02:24.7]} 18... h5 {[%clk 0:02:16.2]} 19. f4 {[%clk 0:02:16.3]} 19...
Nb6 {[%clk 0:01:54.9]} 20. Ne4 {[%clk 0:02:04.1]} 20... Nbd7 {[%clk 0:01:40]}
21. a4 {[%clk 0:01:50]} 21... Nxa4 {[%clk 0:00:45.3]} 22. Bxa4 {[%clk
0:01:43.7]} 22... bxa4 {[%clk 0:00:46]} 23. Rxa4 {[%clk 0:01:29.2]} 23... Nb6
{[%clk 0:00:46.4]} 24. Ra1 {[%clk 0:01:24.8]} 24... Nd5 {[%clk 0:00:36.7]} 25.
h3 {[%clk 0:01:13.3]} 25... Rc8 {[%clk 0:00:36]} 26. Kh2 {[%clk 0:01:12.1]}
26... h4 {[%clk 0:00:36.4]} 27. Qg4 {[%clk 0:01:09]} 27... Qb6 {[%clk
0:00:24.7]} 28. Re2 {[%clk 0:00:56.5]} 28... Rh5 {[%clk 0:00:24.8]} 29. Nf3
{[%clk 0:00:43.5]} 29... Kf8 {[%clk 0:00:23.2]} 30. Neg5 {[%clk 0:00:41]} 30...
Qc6 {[%clk 0:00:19]} 31. Nxh4 {[%clk 0:00:37.5]} 31... Bxg5 {[%clk 0:00:20.1]}
32. fxg5 {[%clk 0:00:38]} 32... Ne7 {[%clk 0:00:21.3]} 33. Bf4 {[%clk
0:00:25.9]} 33... Rd8 {[%clk 0:00:20.7]} 34. Rae1 {[%clk 0:00:24.5]} 34... Rd3
{[%clk 0:00:20.3]} 35. Nf3 {[%clk 0:00:22.1]} 35... Nf5 {[%clk 0:00:19.5]} 36.
Rd2 {[%clk 0:00:21.1]} 36... Rh4 {[%clk 0:00:14.6]} 37. Nxh4 {[%clk 0:00:17.6]}
37... Nxh4 {[%clk 0:00:15.6]} 38. Ree2 {[%clk 0:00:17.2]} 38... Rxd2 {[%clk
0:00:15.6]} 39. Rxd2 {[%clk 0:00:17.8]} 39... Nf5 {[%clk 0:00:16.5]} 40. h4
{[%clk 0:00:18.3]} 40... Qe4 {[%clk 0:00:16.1]} 41. Rf2 {[%clk 0:00:16.3]} 41...
Qe1 {[%clk 0:00:16.5]} 42. Qe2 {[%clk 0:00:15.3]} 42... Qb1 {[%clk 0:00:16.9]}
43. Qxc4 {[%clk 0:00:15.9]} 43... Kg7 {[%clk 0:00:17.1]} 44. Qc7 {[%clk
0:00:15.8]} 44... Qe1 {[%clk 0:00:17.6]} 45. Bg3 {[%clk 0:00:14.5]} 45... Bd5
{[%clk 0:00:18.7]} 46. Qb6 {[%clk 0:00:14.3]} 46... Qe4 {[%clk 0:00:18.5]} 47.
Qb4 {[%clk 0:00:14.6]} 47... Qe3 {[%clk 0:00:18.4]} 48. Qf4 {[%clk 0:00:15]}
48... Qb6 {[%clk 0:00:17.4]} 49. Rd2 {[%clk 0:00:15.9]} 49... Qc5 {[%clk
0:00:17]} 50. Bf2 {[%clk 0:00:16.9]} 50... Qb5 {[%clk 0:00:17.1]} 51. Bd4 {[%clk
0:00:17.9]} 51... Qa4 {[%clk 0:00:16.1]} 52. Rf2 {[%clk 0:00:18.8]} 52... Qa1
{[%clk 0:00:16.5]} 53. b4 {[%clk 0:00:16.1]} 53... Qd1 {[%clk 0:00:14.9]} 54.
Qd2 {[%clk 0:00:15.9]} 54... Qb1 {[%clk 0:00:15]} 55. Qf4 {[%clk 0:00:16.8]}
55... Qd1 {[%clk 0:00:15.5]} 56. Bc5 {[%clk 0:00:15.8]} 56... Qb1 {[%clk
0:00:15.7]} 57. Be7 {[%clk 0:00:16.4]} 57... Qd1 {[%clk 0:00:15.7]} 58. Bf6+
{[%clk 0:00:17.3]} 58... Kh7 {[%clk 0:00:16.1]} 59. c4 {[%clk 0:00:18.7]} 59...
Bc6 {[%clk 0:00:16.7]} 60. c5 {[%clk 0:00:17.5]} 60... Bd5 {[%clk 0:00:17]} 61.
Rd2 {[%clk 0:00:18.4]} 61... Qb1 {[%clk 0:00:17]} 62. Rxd5 {[%clk 0:00:18.8]}
62... exd5 {[%clk 0:00:18.2]} 63. h5 {[%clk 0:00:20.4]} 63... Qd1 {[%clk
0:00:16.5]} 64. hxg6+ {[%clk 0:00:20.1]} 64... fxg6 {[%clk 0:00:17.4]} 65. e6
{[%clk 0:00:20.6]} 65... Qh5+ {[%clk 0:00:18.3]} 66. Kg1 {[%clk 0:00:21.6]}
66... Qd1+ {[%clk 0:00:19.4]} 67. Qf1 {[%clk 0:00:22.5]} 67... Qd2 {[%clk
0:00:16.4]} 68. Qf3 {[%clk 0:00:22.8]} 68... Qe1+ {[%clk 0:00:17.1]} 69. Qf1
{[%clk 0:00:23]} 69... Qxe6 {[%clk 0:00:16.4]} 70. Qf2 {[%clk 0:00:21.9]} 70...
Kg8 {[%clk 0:00:16.4]} 71. g4 {[%clk 0:00:22.6]} 71... Ne3 {[%clk 0:00:15.9]}
72. Qf4 {[%clk 0:00:23.6]} 72... Nxg4 {[%clk 0:00:15.5]} 73. Qb8+ {[%clk
0:00:24]} 73... Kf7 {[%clk 0:00:16.6]} 74. Qc7+ {[%clk 0:00:25.2]} 74... Kf8
{[%clk 0:00:17.6]} 75. Qd8+ {[%clk 0:00:26.1]} 75... Kf7 {[%clk 0:00:18.5]} 76.
Qc7+ {[%clk 0:00:27.3]} 76... Kf8 {[%clk 0:00:19.6]} 77. Qg7+ {[%clk 0:00:28.3]}
77... Ke8 {[%clk 0:00:20.2]} 78. Qxg6+ {[%clk 0:00:29.5]} 78... Kd7 {[%clk
0:00:21.2]} 79. Qh7+ {[%clk 0:00:27.8]} 79... Kc6 {[%clk 0:00:22.3]} 80. Qd3
{[%clk 0:00:27.7]} 80... Kb7 {[%clk 0:00:18.2]} 81. Kg2 {[%clk 0:00:28.2]} 81...
Ne3+ {[%clk 0:00:19]} 82. Kf3 {[%clk 0:00:26.8]} 82... Nf5 {[%clk 0:00:16.7]}
83. Kf4 {[%clk 0:00:26.9]} 83... Nh4 {[%clk 0:00:16.6]} 84. b5 {[%clk
0:00:26.1]} 84... axb5 {[%clk 0:00:12.6]} 85. Qh7+ {[%clk 0:00:26.6]} 85... Ka6
{[%clk 0:00:12.6]} 86. Qxh4 {[%clk 0:00:27.5]} 86... b4 {[%clk 0:00:12.2]} 87.
Qf2 {[%clk 0:00:23.7]} 87... b3 {[%clk 0:00:09.9]} 88. Qf1+ {[%clk 0:00:24.3]}
88... Ka5 {[%clk 0:00:09.5]} 89. Bc3+ {[%clk 0:00:23.4]} 89... Ka4 {[%clk
0:00:04]} 90. Qa1+ {[%clk 0:00:23.7]} 90... Kb5 {[%clk 0:00:04.4]} 91. Qa5+
{[%clk 0:00:24.1]} 91... Kc4 {[%clk 0:00:05.7]} 92. Qb4+ {[%clk 0:00:24.9]}
92... Kd3 {[%clk 0:00:06.4]} 93. Qd4+ {[%clk 0:00:25.4]} 93... Ke2 {[%clk
0:00:07.6]} 94. Qd2+ {[%clk 0:00:26.3]} 94... Kf1 {[%clk 0:00:08.8]} 95. Qd3+
{[%clk 0:00:24.5]} 95... Kg2 {[%clk 0:00:09.8]} 96. Qf3+ {[%clk 0:00:23.2]}
96... Kh2 {[%clk 0:00:07.4]} 97. Qf2+ {[%clk 0:00:23.9]} 97... Kh1 {[%clk
0:00:07.3]} 98. Qh4+ {[%clk 0:00:24.4]} 98... Kg2 {[%clk 0:00:07.3]} 99. Qg4+
{[%clk 0:00:25.6]} 99... Qxg4+ {[%clk 0:00:07.3]} 100. Kxg4 {[%clk 0:00:26.6]}
1-0

[Event "*** Titled Tuesday 3|2 Blitz"]
[Site "Chess.com"]
[Date "2014.12.30"]
[Round "4"]
[White "kharposh"]
[Black "DrHolmes13"]
[Result "0-1"]
[WhiteElo "2000"]
[BlackElo "2193"]
[TimeControl "180+2"]
[EndTime "11:44:59 PST"]
[Termination "DrHolmes13 won by resignation"]

1. d4 {[%clk 0:03:00]} 1... Nf6 {[%clk 0:02:58.8]} 2. Nf3 {[%clk 0:02:58.3]}
2... e6 {[%clk 0:02:59.8]} 3. Nc3 {[%clk 0:02:55.3]} 3... Bb4 {[%clk 0:02:56.3]}
4. e3 {[%clk 0:02:53.2]} 4... b6 {[%clk 0:02:54.4]} 5. Bd3 {[%clk 0:02:53.4]}
5... Bb7 {[%clk 0:02:55.7]} 6. O-O {[%clk 0:02:53.5]} 6... O-O {[%clk
0:02:56.6]} 7. Qe2 {[%clk 0:02:54.3]} 7... Bxc3 {[%clk 0:02:52.5]} 8. bxc3
{[%clk 0:02:54.8]} 8... Ne4 {[%clk 0:02:54.1]} 9. c4 {[%clk 0:02:51.5]} 9... f5
{[%clk 0:02:54.1]} 10. Bb2 {[%clk 0:02:46.8]} 10... d6 {[%clk 0:02:55.1]} 11.
Nd2 {[%clk 0:02:46.2]} 11... Nxd2 {[%clk 0:02:48.3]} 12. Qxd2 {[%clk 0:02:46.2]}
12... Nd7 {[%clk 0:02:49.8]} 13. a4 {[%clk 0:02:34.8]} 13... a5 {[%clk
0:02:48.3]} 14. Ba3 {[%clk 0:02:33.7]} 14... Nf6 {[%clk 0:02:42.9]} 15. f3
{[%clk 0:02:30.7]} 15... Qe8 {[%clk 0:02:28.2]} 16. c5 {[%clk 0:02:26.7]} 16...
dxc5 {[%clk 0:02:17.6]} 17. dxc5 {[%clk 0:02:27.1]} 17... Rf7 {[%clk 0:02:14.5]}
18. cxb6 {[%clk 0:02:24.7]} 18... cxb6 {[%clk 0:02:15.5]} 19. Bb5 {[%clk
0:02:25.1]} 19... Bc6 {[%clk 0:02:16.4]} 20. c4 {[%clk 0:02:25]} 20... Rd8
{[%clk 0:02:13.1]} 21. Qc3 {[%clk 0:02:24.7]} 21... Bxb5 {[%clk 0:02:13.3]} 22.
cxb5 {[%clk 0:02:23.1]} 22... Rfd7 {[%clk 0:02:07.9]} 23. Qc6 {[%clk 0:02:21.1]}
23... Rd2 {[%clk 0:01:55]} 24. Qxb6 {[%clk 0:02:08.3]} 24... Qg6 {[%clk
0:01:50.9]} 25. Qxe6+ {[%clk 0:02:08]} 25... Kh8 {[%clk 0:01:50.1]} 26. Rf2
{[%clk 0:01:56.9]} 26... Rxf2 {[%clk 0:01:44.8]} 27. Kxf2 {[%clk 0:01:58.8]}
27... Ng4+ {[%clk 0:01:43.8]} 28. fxg4 {[%clk 0:01:56]} 28... Qxe6 {[%clk
0:01:44.6]} 0-1